fUST/lending_fUST_20240210
["ID","MTS","AMOUNT","RATE_DAILY","PERIOD"]
[313641525,1707515443410,-500.0,0.00024657,2]
[313641526,1707515443420,-500.0,0.00024657,2]
[313641527,1707515443429,-151.0,0.00024657,2]
[313641528,1707515443438,-154.365302,0.00024657,2]
[313641529,1707515443448,-611.74,0.00024657,2]
[313641530,1707515443457,-1424.94,0.00024657,2]
[313641531,1707515443466,-500.0,0.00024657,2]
[313641532,1707515443475,-500.0,0.00024657,2]
[313641533,1707515443484,-500.0,0.00024657,2]
[313641534,1707515443493,-500.0,0.00024657,2]
[313641535,1707515443503,-500.0,0.00024657,2]
[313641536,1707515443512,-587.69,0.00024657,2]
[313641537,1707515443521,-151.0,0.00024657,2]
[313641538,1707515443530,-154.561332,0.00024657,2]
[313641539,1707515443539,-500.0,0.00024657,2]
[313641540,1707515443548,-500.0,0.00024657,2]
[313641541,1707515443557,-435.88215998,0.00024657,2]
[313641542,1707515443567,-500.0,0.00024657,2]
[313641543,1707515443575,-500.0,0.00024657,2]
[313641544,1707515443584,-500.0,0.00024657,2]
[313641545,1707515443593,-500.0,0.00024657,2]
[313641546,1707515443602,-500.0,0.00024657,2]
[313641547,1707515443611,-500.0,0.00024657,2]
[313641548,1707515443620,-500.0,0.00024657,2]
[313641549,1707515443629,-500.0,0.00024657,2]
[313641550,1707515443638,-526.79848113,0.00024657,2]
[313641551,1707515443647,-500.0,0.00024657,2]
[313641552,1707515443656,-500.0,0.00024657,2]
[313641553,1707515443665,-275.24701902,0.00024657,2]
[313641554,1707515443674,-541.27651996,0.00024657,2]
[313641555,1707515443683,-500.0,0.00024657,2]
[313641556,1707515443692,-500.0,0.00024657,2]
[313641557,1707515443701,-500.0,0.00024657,2]
[313641558,1707515443713,-500.0,0.00024657,2]
[313641559,1707515443722,-570.31009821,0.00024657,2]
[313641560,1707515443731,-500.0,0.00024657,2]
[313641561,1707515443740,-500.0,0.00024657,2]
[313641562,1707515443750,-500.0,0.00024657,2]
[313641563,1707515443759,-500.0,0.00024657,2]
[313641564,1707515443768,-500.0,0.00024657,2]
[313641565,1707515443777,-500.0,0.00024657,2]
[313641566,1707515443787,-500.0,0.00024657,2]
[313641567,1707515443795,-718.358684,0.00024657,2]
[313641568,1707515443805,-718.358684,0.00024657,2]
[313641569,1707515443814,-718.358684,0.00024657,2]
[313641570,1707515443822,-646.86,0.00024657,2]
[313641571,1707515443831,-500.0,0.00024657,2]
[313641572,1707515443840,-500.0,0.00024657,2]
[313641573,1707515443849,-536.80557285,0.00024657,2]
[313641574,1707515443860,-500.0,0.00024657,2]
[313641575,1707515443870,-678.88,0.00024657,2]
[313641576,1707515443880,-500.0,0.00024657,2]
[313641577,1707515443890,-500.0,0.00024657,2]
[313641578,1707515443899,-395.49514567,0.00024657,2]
[313641585,1707515446122,-104.50485433,0.00024657,2]
[313641586,1707515446132,-616.13,0.00024657,2]
[313641588,1707515446141,-718.358684,0.00024657,2]
[313641590,1707515446150,-37.13480408,0.00024657,2]
[313641592,1707515446163,-260.67799851,0.00024657,2]
[313641626,1707516073510,2000.0,0.00029,30]
[313641650,1707516571102,-154.90705577,0.0002098,2]
[313641651,1707516571123,-179.25607649,0.00020981,2]
[313641652,1707516571143,-233.6874626,0.00021,2]
[313641653,1707516571162,-7169.21836092,0.00021,2]
[313641654,1707516571181,-10590.36835847,0.00021,2]
[313641655,1707516571202,-382.4424446,0.00021659,2]
[313641656,1707516571222,-166.666666,0.00021918,2]
[313641657,1707516571242,-168.414046,0.0002199,2]
[313641658,1707516571262,-79.92775531,0.00022049,7]
[313641715,1707516634747,-120.07224469,0.00022049,7]
[313641716,1707516634757,-166.666666,0.00022403,2]
[313641717,1707516634765,-1145.7057511,0.00022557,2]
[313641718,1707516634774,-386.51679021,0.00023454,2]
[313641719,1707516634785,-4947.65961117,0.00023454,2]
[313641769,1707516638273,-1759.82826705,0.00023454,2]
[313641771,1707516638284,-5096.68926821,0.00023454,2]
[313641783,1707516638382,-24870.97023032,0.00023454,2]
[313641785,1707516638392,-3916.59159143,0.00023455,2]
[313641787,1707516638401,-5627.33674124,0.00023455,2]
[313641789,1707516638410,-2792.05400207,0.00023455,2]
[313641791,1707516638419,-5000.0,0.00023455,2]
[313641793,1707516638427,-2656.14967883,0.00023455,2]
[313641795,1707516638437,-4040.85811813,0.00024,2]
[313641797,1707516638446,-280.0,0.00024254,7]
[313641799,1707516638455,-932.88744453,0.00024555,2]
[313641801,1707516638464,-3443.6158477,0.00024555,2]
[313641803,1707516638473,-1069.16036895,0.00024557,2]
[313641805,1707516638482,-599.5,0.00024645,3]
[313641807,1707516638491,-535.43841798,0.00024655,2]
[313641809,1707516638500,-155.05737123,0.00024655,2]
[313641810,1707516638509,-3755.69529023,0.00024655,2]
[313641812,1707516638518,-4179.85662615,0.00024655,2]
[313641814,1707516638527,-1016.61711939,0.00024655,2]
[313641816,1707516638536,-179.38230806,0.00024655,2]
[313641818,1707516638545,-1201.66555398,0.00024655,2]
[313641820,1707516638554,-2823.1509297,0.00024655,2]
[313641822,1707516638563,-330.63590163,0.00024655,2]
[313641824,1707516638572,-179.11630833,0.00024655,2]
[313641826,1707516638581,-155.44491051,0.00024655,2]
[313641828,1707516638590,-155.20768669,0.00024655,2]
[313641830,1707516638600,-523.37302151,0.00024656,2]
[313641831,1707516638609,-2236.37791908,0.00024656,2]
[313641833,1707516638619,-500.0,0.00024657,2]
[313641835,1707516638628,-500.0,0.00024657,2]
[313641836,1707516638637,-500.0,0.00024657,2]
[313641837,1707516638646,-500.0,0.00024657,2]
[313641839,1707516638655,-488.04280479,0.00024657,2]
[313641841,1707516638664,-151.85901942,0.00024657,2]
[313641842,1707516638673,-153.93310463,0.00024657,2]
[313641843,1707516638682,-500.0,0.00024657,2]
[313641844,1707516638691,-270.09763055,0.00024657,2]
[313641845,1707516638700,-500.0,0.00024657,2]
[313641846,1707516638709,-500.0,0.00024657,2]
[313641847,1707516638718,-500.0,0.00024657,2]
[313641848,1707516638727,-500.0,0.00024657,2]
[313641849,1707516638736,-500.0,0.00024657,2]
[313641850,1707516638745,-500.0,0.00024657,2]
[313641851,1707516638754,-155.02015262,0.00024657,2]
[313641852,1707516638763,-500.0,0.00024657,2]
[313641853,1707516638772,-640.74,0.00024657,2]
[313641854,1707516638781,-500.0,0.00024657,2]
[313641855,1707516638789,-315.363701,0.00024657,2]
[313641856,1707516638798,-702.29,0.00024657,2]
[313641857,1707516638807,-500.0,0.00024657,2]
[313641858,1707516638816,-500.0,0.00024657,2]
[313641859,1707516638825,-500.0,0.00024657,2]
[313641860,1707516638834,-500.0,0.00024657,2]
[313641861,1707516638845,-500.0,0.00024657,2]
[313641862,1707516638854,-500.0,0.00024657,2]
[313641863,1707516638863,-526.97557963,0.00024657,2]
[313641864,1707516638872,-500.0,0.00024657,2]
[313641865,1707516638881,-500.0,0.00024657,2]
[313641866,1707516638890,-668.69,0.00024657,2]
[313641867,1707516638899,-152.38544019,0.00024657,2]
[313641868,1707516638909,-500.0,0.00024657,2]
[313641869,1707516638918,-500.0,0.00024657,2]
[313641870,1707516638927,-151.0,0.00024657,2]
[313641871,1707516638936,-151.0,0.00024657,2]
[313641872,1707516638945,-151.0,0.00024657,2]
[313641873,1707516638954,-151.0,0.00024657,2]
[313641874,1707516638963,-500.0,0.00024657,2]
[313641875,1707516638972,-500.0,0.00024657,2]
[313641876,1707516638982,-151.0,0.00024657,2]
[313641877,1707516638992,-151.0,0.00024657,2]
[313641878,1707516639001,-500.0,0.00024657,2]
[313641879,1707516639010,-500.0,0.00024657,2]
[313641880,1707516639020,-500.0,0.00024657,2]
[313641881,1707516639029,-500.0,0.00024657,2]
[313641882,1707516639038,-500.0,0.00024657,2]
[313641883,1707516639047,-260.85461635,0.00024657,2]
[313641884,1707516639056,-500.0,0.00024657,2]
[313641885,1707516639067,-500.0,0.00024657,2]
[313641886,1707516639077,-549.35560284,0.00024657,2]
[313641887,1707516639086,-327.64198413,0.00024657,2]
[313641888,1707516639095,-500.0,0.00024657,2]
[313641889,1707516639104,-245.55365273,0.00024657,2]
[313641890,1707516639114,-500.0,0.00024657,2]
[313641891,1707516639125,-500.0,0.00024657,2]
[313641892,1707516639133,-500.0,0.00024657,2]
[313641893,1707516639143,-500.0,0.00024657,2]
[313641894,1707516639152,-500.0,0.00024657,2]
[313641895,1707516639162,-500.0,0.00024657,2]
[313641896,1707516639171,-500.0,0.00024657,2]
[313641897,1707516639180,-500.0,0.00024657,2]
[313641898,1707516639189,-500.0,0.00024657,2]
[313641899,1707516639198,-500.0,0.00024657,2]
[313641900,1707516639207,-500.0,0.00024657,2]
[313641901,1707516639216,-500.0,0.00024657,2]
[313641902,1707516639225,-500.0,0.00024657,2]
[313641903,1707516639235,-382.68804534,0.00024657,2]
[313641909,1707516641467,-117.31195466,0.00024657,2]
[313641910,1707516641477,-500.0,0.00024657,2]
[313641912,1707516641486,-500.0,0.00024657,2]
[313641913,1707516641496,-500.0,0.00024657,2]
[313641915,1707516641505,-500.0,0.00024657,2]
[313641916,1707516641515,-540.60818931,0.00024657,2]
[313641917,1707516641524,-500.0,0.00024657,2]
[313641918,1707516641533,-500.0,0.00024657,2]
[313641919,1707516641542,-500.0,0.00024657,2]
[313641920,1707516641552,-500.0,0.00024657,2]
[313641921,1707516641561,-500.0,0.00024657,2]
[313641922,1707516641570,-500.0,0.00024657,2]
[313641923,1707516641579,-500.0,0.00024657,2]
[313641924,1707516641588,-166.001232,0.00024657,2]
[313641925,1707516641598,-169.85294333,0.00024657,2]
[313641926,1707516641607,-500.0,0.00024657,2]
[313641927,1707516641616,-500.0,0.00024657,2]
[313641928,1707516641625,-559.796307,0.00024657,2]
[313641929,1707516641634,-124.6691034,0.00024657,2]
[313641930,1707516641646,-435.1272036,0.00024657,2]
[313641931,1707516641655,-559.796307,0.00024657,2]
[313641932,1707516641666,-559.796307,0.00024657,2]
[313641933,1707516641675,-559.796307,0.00024657,2]
[313641934,1707516641684,-559.796307,0.00024657,2]
[313641935,1707516641693,-500.0,0.00024657,2]
[313641936,1707516641702,-500.0,0.00024657,2]
[313641937,1707516641711,-235.31696019,0.00024657,2]
[313641938,1707516641720,-740.11918816,0.00024657,2]
[313641939,1707516641733,-1.88081184,0.00024657,2]
[313641940,1707516641743,-500.0,0.00024657,2]
[313641941,1707516641752,-151.0,0.00024657,2]
[313641942,1707516641762,-151.0,0.00024657,2]
[313641943,1707516641771,-151.0,0.00024657,2]
[313641944,1707516641780,-500.0,0.00024657,2]
[313641945,1707516641789,-500.0,0.00024657,2]
[313641946,1707516641799,-611.29,0.00024657,2]
[313641947,1707516641808,-500.0,0.00024657,2]
[313641948,1707516641817,-500.0,0.00024657,2]
[313641949,1707516641826,-151.0,0.00024657,2]
[313641950,1707516641835,-151.0,0.00024657,2]
[313641951,1707516641845,-151.0,0.00024657,2]
[313641952,1707516641855,-1041.34,0.00024657,2]
[313641953,1707516641863,-500.0,0.00024657,2]
[313641954,1707516641873,-500.0,0.00024657,2]
[313641955,1707516641883,-500.0,0.00024657,2]
[313641956,1707516641892,-39.3691917,0.00024657,2]
[313641957,1707516641905,-776.8208083,0.00024657,2]
[313641958,1707516641915,-500.0,0.00024657,2]
[313641959,1707516641924,-500.0,0.00024657,2]
[313641960,1707516641934,-602.05,0.00024657,2]
[313641961,1707516641943,-599.49,0.00024657,2]
[313641962,1707516641952,-500.0,0.00024657,2]
[313641963,1707516641961,-500.0,0.00024657,2]
[313641964,1707516641971,-500.0,0.00024657,2]
[313641965,1707516641980,-500.0,0.00024657,2]
[313641966,1707516641989,-500.0,0.00024657,2]
[313641967,1707516641998,-290.17876149,0.00024657,2]
[313641968,1707516642007,-516.79,0.00024657,2]
[313641969,1707516642016,-500.0,0.00024657,2]
[313641970,1707516642026,-500.0,0.00024657,2]
[313641971,1707516642035,-500.0,0.00024657,2]
[313641972,1707516642044,-500.0,0.00024657,2]
[313641973,1707516642054,-500.0,0.00024657,2]
[313641974,1707516642065,-500.0,0.00024657,2]
[313641975,1707516642077,-500.0,0.00024657,2]
[313641976,1707516642086,-2459.33,0.00024657,2]
[313641977,1707516642095,-151.0,0.00024657,2]
[313641978,1707516642104,-151.0,0.00024657,2]
[313641979,1707516642114,-151.0,0.00024657,2]
[313641980,1707516642123,-636.66972414,0.00024657,2]
[313641981,1707516642131,-500.0,0.00024657,2]
[313641982,1707516642141,-500.0,0.00024657,2]
[313641983,1707516642151,-500.0,0.00024657,2]
[313641984,1707516642160,-500.0,0.00024657,2]
[313641985,1707516642169,-500.0,0.00024657,2]
[313641986,1707516642178,-500.0,0.00024657,2]
[313641987,1707516642187,-500.0,0.00024657,2]
[313641988,1707516642196,-500.0,0.00024657,2]
[313641989,1707516642205,-500.0,0.00024657,2]
[313641990,1707516642214,-500.0,0.00024657,2]
[313641991,1707516642223,-500.0,0.00024657,2]
[313641992,1707516642232,-1256.05,0.00024657,2]
[313641993,1707516642241,-500.0,0.00024657,2]
[313641994,1707516642251,-1000.0,0.00024657,2]
[313641995,1707516642260,-500.0,0.00024657,2]
[313641996,1707516642269,-500.0,0.00024657,2]
[313641997,1707516642278,-500.0,0.00024657,2]
[313641998,1707516642288,-715.75,0.00024657,2]
[313641999,1707516642296,-500.0,0.00024657,2]
[313642000,1707516642306,-500.0,0.00024657,2]
[313642001,1707516642315,-500.0,0.00024657,2]
[313642002,1707516642324,-500.0,0.00024657,2]
[313642003,1707516642333,-5579.78938074,0.00024657,2]
[313642030,1707516643343,-1026.55,0.00024647,3]
[313642031,1707516643355,-3741.51,0.00024657,2]
[313642036,1707516646253,-1826.10197646,0.00024657,2]
[313642044,1707516910493,150.89437394,0.00028635,30]
[313642047,1707516975521,2000.0,0.00029,30]
[313642060,1707517214558,150.89437394,0.00028635,30]
[313642064,1707517421951,-5000000.0,0.00042761,60]
[313642067,1707517633094,-167.95598,0.0002214,2]
[313642068,1707517633114,-199.4245456,0.00022236,2]
[313642069,1707517633134,-4097.99849622,0.00022236,2]
[313642070,1707517653107,-201.87150745,0.00022236,2]
[313642073,1707517700251,150.90945433,0.00028534,30]
[313642074,1707517763104,-179.25607649,0.00021935,2]
[313642075,1707517763124,-168.414045,0.00021936,2]
[313642076,1707517763144,-1018.0,0.00021994,2]
[313642077,1707517763164,-1746.18903205,0.00022235,2]
[313642078,1707517763184,-1888.14084646,0.00022236,2]
[313642145,1707517832353,-300.0,0.00022236,2]
[313642147,1707517832363,-216.06484717,0.00022236,2]
[313642149,1707517832372,-162.71989,0.00022669,2]
[313642151,1707517832381,-6787.05560119,0.00022762,2]
[313642153,1707517832392,-9501.07534931,0.00022762,2]
[313642155,1707517832401,-865.42001146,0.00023455,2]
[313642157,1707517832412,-1809.58459737,0.00023455,2]
[313642159,1707517832423,-2365.34837289,0.00023455,2]
[313642161,1707517832435,-535.43841798,0.00023455,2]
[313642286,1707517841658,-262.587623,0.00023439,2]
[313642287,1707517841668,-1663.82054108,0.00023455,2]
[313642386,1707517845025,-435.39266805,0.00023455,2]
[313642388,1707517845035,-480.57806297,0.00023455,2]
[313642389,1707517845044,-620.00016899,0.00023529,2]
[313642390,1707517845054,-215.60591,0.00023633,2]
[313642391,1707517845063,-200.0,0.00023899,7]
[313642392,1707517845072,-934.2890416,0.00024408,2]
[313642393,1707517845090,-3122.73224546,0.00024408,2]
[313642394,1707517845101,-3074.38630495,0.00024408,2]
[313642398,1707517846881,-435.34359155,0.00024408,2]
[313642399,1707517847084,-628.869997,0.00024408,2]
[313642400,1707517847095,-10929.2670456,0.00024408,2]
[313642401,1707517847104,-306.9082875,0.000245,2]
[313642402,1707517847114,-195.46694618,0.00024557,2]
[313642403,1707517847122,-962.24433201,0.00024557,2]
[313642404,1707517847132,-903.65,0.0002457,3]
[313642405,1707517847141,-1189.6460264,0.0002457,3]
[313642408,1707517880393,2000.0,0.00029,30]
[313642411,1707518116591,150.90945433,0.00028517,30]
[313642415,1707518578697,150.89437394,0.0002817,30]
[313642419,1707518773468,2000.0,0.00029,30]
[313642421,1707518827086,-166.666666,0.00019205,2]
[313642422,1707518839083,-368.93616586,0.00019205,2]
[313642423,1707518839105,-154.90705577,0.00019206,2]
[313642424,1707518839126,-3395.51677837,0.00019206,2]
[313642425,1707518850090,-10214.21979048,0.00019205,2]
[313642426,1707518914705,150.89437394,0.00027577,30]
[313642435,1707518947112,-7984.69564419,0.00019194,2]
[313642436,1707518947135,-1110.23,0.00019195,3]
[313642437,1707518947157,-275130.97445727,0.00019205,2]
[313642438,1707518947177,-1485.1533176,0.00019207,2]
[313642439,1707518947198,-393.881434,0.0001938,2]
[313642440,1707518947221,-24900.0,0.00020064,2]
[313642441,1707518947243,-200.0,0.00020164,2]
[313642442,1707518947265,-342.714599,0.00020184,2]
[313642443,1707518947286,-33774.5037357,0.00020236,2]
[313642444,1707518947308,-500.0,0.00020822,2]
[313642445,1707518947328,-500.0,0.00020822,2]
[313642446,1707518947352,-866.0198988,0.00020979,2]
[313642447,1707518947372,-250.0,0.00021036,2]
[313642448,1707518947392,-1547.75690327,0.00021079,2]
[313642449,1707518950079,-1901.11,0.00019195,3]
[313642450,1707518950101,-13408.36492124,0.00021079,2]
[313642451,1707518950122,-535.2740041,0.00021079,2]
[313642452,1707518950142,-155.1549611,0.0002108,2]
[313642453,1707518950168,-50000.0,0.00021081,2]
[313642454,1707518950187,-866.01989877,0.00021877,2]
[313642455,1707518950207,-162.71989,0.00021918,2]
[313642456,1707518950229,-158.95416115,0.00022081,2]
[313642457,1707518950254,-280.0,0.00022181,7]
[313642458,1707518950274,-980.6631799,0.0002219,2]
[313642459,1707518950294,-280.10675124,0.00022236,2]
[313642521,1707519032552,-308.7327118,0.00020822,2]
[313642523,1707519032565,-191.2672882,0.00020822,2]
[313642524,1707519032575,-19.89324876,0.00022236,2]
[313642526,1707519032584,-4576.99816061,0.00022456,2]
[313642528,1707519032593,-1327.03767194,0.00022457,2]
[313642558,1707519038626,-512.74356397,0.00022457,2]
[313642563,1707519038730,-206.84815869,0.00022457,2]
[313642564,1707519038740,-866.01989877,0.00022775,2]
[313642565,1707519038755,-585.20363329,0.0002347,2]
[313642566,1707519038764,-2966.56390572,0.00023472,2]
[313642567,1707519038774,-5000.0,0.00023472,2]
[313642568,1707519038785,-866.01989877,0.00023673,2]
[313642569,1707519038796,-391.0,0.00024399,7]
[313642570,1707519038806,-866.01989877,0.00024571,2]
[313642571,1707519038816,-21090.77830001,0.00024578,2]
[313642572,1707519038826,-155.0697814,0.00024578,2]
[313642573,1707519038837,-785.24,0.00024647,3]
[313642574,1707519038846,-1453.39,0.00024647,3]
[313642575,1707519038856,-167.22205113,0.00024655,2]
[313642576,1707519038866,-261.94560961,0.00024655,2]
[313642577,1707519038876,-1297.69513983,0.00024655,2]
[313642578,1707519038886,-1688.5367588,0.00024655,2]
[313642579,1707519038896,-201.87150745,0.00024655,2]
[313642580,1707519038906,-179.18619241,0.00024655,2]
[313642581,1707519038915,-295.73444606,0.00024655,2]
[313642582,1707519038925,-1859.71951506,0.00024655,2]
[313642583,1707519038934,-590.02632581,0.00024655,2]
[313642584,1707519038944,-154.90705577,0.00024655,2]
[313642585,1707519038956,-154.90705577,0.00024655,2]
[313642586,1707519038968,-4179.85662615,0.00024656,2]
[313642587,1707519038978,-500.0,0.00024657,2]
[313642588,1707519038987,-500.0,0.00024657,2]
[313642589,1707519038997,-540.54509523,0.00024657,2]
[313642590,1707519039006,-500.0,0.00024657,2]
[313642591,1707519039016,-373.28057084,0.00024657,2]
[313642592,1707519039029,-126.71942916,0.00024657,2]
[313642593,1707519039039,-320.49347084,0.00024657,2]
[313642615,1707519043786,-293.67497372,0.00024656,2]
[313642616,1707519043796,-179.50652916,0.00024657,2]
[313642617,1707519043805,-500.0,0.00024657,2]
[313642618,1707519043814,-142.2398006,0.00024657,2]
[313642692,1707519044556,-488.7301994,0.00024657,2]
[313642694,1707519044566,-500.0,0.00024657,2]
[313642696,1707519044575,-500.0,0.00024657,2]
[313642698,1707519044584,-500.0,0.00024657,2]
[313642700,1707519044593,-500.0,0.00024657,2]
[313642702,1707519044602,-500.0,0.00024657,2]
[313642704,1707519044611,-150.0,0.00024657,2]
[313642706,1707519044619,-507.14192203,0.00024657,2]
[313642708,1707519044628,-500.0,0.00024657,2]
[313642710,1707519044637,-500.0,0.00024657,2]
[313642712,1707519044647,-627.91,0.00024657,2]
[313642714,1707519044656,-1386.4,0.00024657,2]
[313642716,1707519044665,-500.0,0.00024657,2]
[313642718,1707519044675,-500.0,0.00024657,2]
[313642720,1707519044686,-591.87733819,0.00024657,2]
[313642722,1707519044698,-853.96,0.00024657,2]
[313642724,1707519044707,-500.0,0.00024657,2]
[313642726,1707519044716,-500.0,0.00024657,2]
[313642728,1707519044725,-500.0,0.00024657,2]
[313642730,1707519044734,-199.313053,0.00024657,2]
[313642732,1707519044743,-500.0,0.00024657,2]
[313642734,1707519044756,-500.0,0.00024657,2]
[313642736,1707519044767,-500.0,0.00024657,2]
[313642738,1707519044776,-482.53778755,0.00024657,2]
[313642743,1707519044811,-17.46221245,0.00024657,2]
[313642745,1707519044822,-500.0,0.00024657,2]
[313642746,1707519044832,-382.35974421,0.00024657,2]
[313642747,1707519044844,-117.64025579,0.00024657,2]
[313642749,1707519044853,-500.0,0.00024657,2]
[313642751,1707519044862,-502.71168863,0.00024657,2]
[313642753,1707519044871,-500.0,0.00024657,2]
[313642754,1707519044881,-500.0,0.00024657,2]
[313642755,1707519044890,-500.0,0.00024657,2]
[313642756,1707519044899,-500.0,0.00024657,2]
[313642757,1707519044909,-500.0,0.00024657,2]
[313642758,1707519044919,-500.0,0.00024657,2]
[313642759,1707519044928,-85.53805558,0.00024657,2]
[313642760,1707519044940,-414.46194442,0.00024657,2]
[313642761,1707519044950,-500.0,0.00024657,2]
[313642762,1707519044960,-500.0,0.00024657,2]
[313642763,1707519044969,-500.0,0.00024657,2]
[313642764,1707519044978,-606.66,0.00024657,2]
[313642765,1707519044987,-500.0,0.00024657,2]
[313642766,1707519044997,-500.0,0.00024657,2]
[313642767,1707519045006,-500.0,0.00024657,2]
[313642768,1707519045016,-500.0,0.00024657,2]
[313642769,1707519045025,-478.87805558,0.00024657,2]
[313642770,1707519045038,-176.83194442,0.00024657,2]
[313642771,1707519045047,-714.69,0.00024657,2]
[313642772,1707519045057,-500.0,0.00024657,2]
[313642773,1707519045066,-382.03338393,0.00024657,2]
[313642774,1707519045097,-117.96661607,0.00024657,2]
[313642775,1707519045106,-500.0,0.00024657,2]
[313642776,1707519045115,-500.0,0.00024657,2]
[313642777,1707519045124,-500.0,0.00024657,2]
[313642778,1707519045134,-682.49,0.00024657,2]
[313642780,1707519045142,-503.76,0.00024657,2]
[313642781,1707519045151,-500.0,0.00024657,2]
[313642782,1707519045161,-500.0,0.00024657,2]
[313642783,1707519045170,-550.0,0.00024657,2]
[313642784,1707519045179,-2465.8,0.00024657,2]
[313642785,1707519045188,-500.0,0.00024657,2]
[313642786,1707519045198,-500.0,0.00024657,2]
[313642787,1707519045207,-183.95635184,0.00024657,2]
[313642788,1707519045216,-500.0,0.00024657,2]
[313642789,1707519045225,-500.0,0.00024657,2]
[313642790,1707519045234,-564.7187849,0.00024657,2]
[313642791,1707519045246,-37.54986027,0.00024657,2]
[313642792,1707519045255,-393.63927075,0.00024657,2]
[313642793,1707519045265,-500.0,0.00024657,2]
[313642794,1707519045274,-6.66249398,0.00024657,2]
[313642818,1707519046627,-851.49034209,0.00024656,2]
[313642827,1707519412607,10000.0,0.000171,2]
[313642828,1707519419092,10000.0,0.000171,2]
[313642829,1707519431975,10000.0,0.000171,2]
[313642830,1707519444693,10000.0,0.000171,2]
[313642831,1707519453969,3818.57,0.000171,2]
[313642832,1707519454000,6181.43,0.000171,2]
[313642833,1707519466574,10000.0,0.000171,2]
[313642834,1707519478725,10000.0,0.000171,2]
[313642835,1707519499632,18818.57,0.000171,2]
[313642836,1707519539946,10000.0,0.00017009,2]
[313642837,1707519546165,10000.0,0.00017009,2]
[313642838,1707519647735,3000.0,0.00016096,2]
[313642839,1707519669984,250.0,0.00016095,2]
[313642840,1707519671888,2000.0,0.00029,30]
[313642841,1707519713888,159.9108223,0.00016478,2]
[313642842,1707519796917,320.613336,0.0001631,2]
[313642843,1707519819105,10000.0,0.00017009,2]
[313642844,1707519828902,10000.0,0.00017009,2]
[313642845,1707519838810,10000.0,0.00017009,2]
[313642846,1707519844613,1297.69513983,0.00017008,2]
[313642847,1707519848038,10000.0,0.00017009,2]
[313642848,1707519869361,10000.0,0.00017009,2]
[313642849,1707519895153,381.60237144,0.00016994,2]
[313642850,1707519994550,285345.19424775,0.00016994,2]
[313642851,1707520012193,65600.80832981,0.00016994,2]
[313642852,1707520051109,-294.63300604,0.00017069,2]
[313642853,1707520051131,-640.61124371,0.00017069,2]
[313642854,1707520051154,-154.90705577,0.00017069,2]
[313642855,1707520051179,-201.57742801,0.00017069,2]
[313642856,1707520051199,-500.0,0.0001707,2]
[313642857,1707520051224,-154.90705577,0.0001707,2]
[313642858,1707520051245,-83953.33130045,0.00017071,2]
[313642859,1707520051265,-37075.32495615,0.00017072,2]
[313642860,1707520051287,-7984.69564419,0.00017073,2]
[313642861,1707520051307,-706.1536591,0.00017088,2]
[313642862,1707520051328,-1108.81210063,0.00017094,2]
[313642863,1707520051350,-200.0,0.00017942,2]
[313642864,1707520051370,-381.60237141,0.00018588,2]
[313642865,1707520051390,-168.414045,0.00019178,2]
[313642866,1707520051411,-280.0,0.00019737,2]
[313642867,1707520051433,-381.60237141,0.00020182,2]
[313642868,1707520051455,-2271.2244386,0.00021,2]
[313642869,1707520051476,-391.0,0.0002171,7]
[313642870,1707520051497,-381.60237141,0.00021776,2]
[313642871,1707520051520,-500.0,0.00021888,2]